bitfinex/quotes_ETHUSD_20241120
["timestamp","ask_amount","ask_price","bid_price","bid_amount"]
[1732087702590,0.7755,3107.5,3107.4,3.21812]
[1732087702788,3.21754,3108.0,3107.6,3.21789]
[1732087702789,0.7755,3107.8,3107.6,3.21789]
[1732087703831,0.7755,3107.8,3107.2,0.7507]
[1732087704034,0.7755,3107.8,3107.6,3.21791]
[1732087704187,3.9555,3108.1,3107.7,3.21781]
[1732087704391,4.672775,3108.1,3107.7,3.21781]
[1732087704833,7.890175,3108.1,3107.5,3.21794]
[1732087705052,7.890175,3108.1,3107.4,3.21811]
[1732087705334,1.3390175,3108.0,3107.4,3.21811]
[1732087705517,4.5565275,3108.0,3107.4,3.21811]
[1732087706103,1.3390175,3108.0,3107.6,3.21789]
[1732087706843,1.3390175,3108.0,3107.4,3.21811]
[1732087707044,0.85119375,3107.9,3107.4,3.21811]
[1732087707596,0.85119375,3107.9,3107.5,3.21799]
[1732087709510,0.85119375,3107.9,3107.3,3.21816]
[1732087709718,0.7682,3107.8,3107.3,3.21816]
[1732087709900,0.48370638,3107.7,3107.3,3.21816]
[1732087710319,0.7682,3107.5,3107.1,3.21835]
[1732087711024,0.7682,3107.5,3107.2,3.21831]
[1732087711859,0.7682,3107.8,3107.2,0.7752]
[1732087712066,0.7682,3107.8,3107.3,3.21819]
[1732087712419,3.98591,3107.8,3107.3,3.21819]
[1732087712876,3.21781,3107.7,3107.1,3.21842]
[1732087713279,0.7682,3107.6,3107.1,3.21842]
[1732087713484,0.398601,3107.5,3107.1,3.21842]
[1732087713681,3.76824,3107.3,3106.7,3.21877]
[1732087713889,0.7682,3107.2,3106.5,3.21902]
[1732087714199,3.9866,3107.2,3106.6,3.21889]
[1732087714369,3.76845,3107.1,3106.5,3.21902]
[1732087714543,0.7682,3107.0,3106.5,6.43801]
[1732087714748,1.3008229,3107.0,3106.5,6.43801]
[1732087714986,1.3008229,3107.0,3106.5,3.21899]
[1732087715153,1.3008229,3107.0,3106.5,3.21898]
[1732087715491,1.3008229,3107.0,3106.6,3.21894]
[1732087716051,0.55,3106.9,3106.5,3.21898]
[1732087716249,1.05692729,3106.9,3106.5,3.21898]
[1732087717838,0.55,3106.9,3106.5,3.21898]
[1732087717992,0.55,3106.9,3106.1,0.7752]
[1732087718199,0.55,3106.9,3106.6,3.21894]
[1732087722272,0.7682,3107.0,3106.7,3.21878]
[1732087725359,0.7682,3107.0,3106.8,3.21874]
[1732087726121,0.78957904,3107.2,3106.9,3.21864]
[1732087726327,1.16743504,3107.2,3106.9,3.21864]
[1732087726851,0.33593504,3107.2,3107.1,3.21843]
[1732087727657,0.33593504,3107.2,3106.9,6.43717]
[1732087727873,0.33593504,3107.2,3106.9,3.21856]
[1732087728164,0.33593504,3107.2,3107.0,3.21852]
[1732087729469,0.33593504,3107.2,3107.1,3.21843]
[1732087729620,0.33593504,3107.2,3107.1,3.97953]
[1732087731167,0.8315,3107.5,3107.3,3.2182]
[1732087732173,3.21773,3107.8,3107.3,3.2182]
[1732087732330,1.3815,3107.7,3107.3,3.2182]
[1732087734268,1.841423,3107.7,3107.1,3.97953]
[1732087734469,5.059253,3107.7,3107.1,3.21843]
[1732087734931,5.059253,3107.7,3107.1,6.43678]
[1732087735218,5.059253,3107.7,3107.4,3.21809]
[1732087735219,1.841423,3107.7,3107.4,3.21809]
[1732087735398,1.3815,3107.7,3107.4,3.21809]
[1732087735571,0.8315,3107.7,3107.4,3.21809]
[1732087735916,1.3815,3107.9,3107.3,3.21816]
[1732087736115,1.3815,3107.9,3107.6,3.21791]
[1732087737176,3.18,3108.1,3107.4,3.21812]
[1732087737491,3.18,3108.1,3107.3,0.7611]
[1732087737492,3.18,3108.1,3107.7,3.21774]
[1732087737692,3.902871,3108.1,3107.7,3.21774]
[1732087738821,3.902871,3108.1,3107.7,3.21773]
[1732087738992,3.18,3108.1,3108.0,3.2175]
[1732087746593,0.55,3108.4,3108.1,3.21734]
[1732087746789,0.55,3108.4,3107.9,3.21751]
[1732087747000,3.21719,3108.3,3107.8,3.21768]
[1732087747212,1.02185047,3108.4,3107.8,3.21768]
[1732087747413,1.02185047,3108.4,3107.8,3.21764]
[1732087747637,0.43597073,3108.3,3107.8,3.21764]
[1732087747894,0.43597073,3108.3,3107.8,6.43527]
[1732087748089,0.43597073,3108.3,3107.8,3.21763]
[1732087748392,3.65318073,3108.3,3107.8,3.21763]
[1732087748981,3.21737,3108.2,3107.6,3.97898]
[1732087749151,3.21764,3107.9,3107.2,3.21828]
[1732087749360,3.21764,3107.9,3107.1,2.90366625]
[1732087749361,3.21764,3107.9,3107.3,3.97928]
[1732087749697,3.21764,3107.9,3107.1,3.97949]
[1732087749698,3.21792,3107.6,3107.1,3.97949]
[1732087751360,3.21773,3107.8,3107.1,3.97949]
[1732087751577,3.21773,3107.8,3107.2,3.21832]
[1732087751763,3.21773,3107.8,3107.3,3.21821]
[1732087753792,0.55,3107.9,3107.4,3.21809]
[1732087754796,0.8315,3108.0,3107.5,3.21801]
[1732087754947,3.2173,3108.2,3107.7,3.21777]
[1732087756183,3.2174,3108.1,3107.6,1.133001]
[1732087756410,3.2173,3108.2,3107.6,1.133001]
[1732087756568,3.2173,3108.2,3107.6,4.350901]
[1732087757780,3.2173,3108.2,3107.6,1.133001]
[1732087757983,3.21757,3108.0,3107.4,3.2181]
[1732087758369,3.21757,3108.0,3107.3,4.02935]
[1732087758573,3.21757,3108.0,3107.5,3.21801]
[1732087758813,6.4347,3108.2,3107.5,6.43594]
[1732087759109,3.21733,3108.2,3107.5,3.21793]
[1732087759296,3.21755,3108.0,3107.4,3.2181]
[1732087759477,3.2176,3107.9,3107.4,3.2181]
[1732087759804,3.97223,3107.8,3107.3,0.8112]
[1732087759989,3.97223,3107.8,3107.3,4.02942]
[1732087760813,4.52206,3108.0,3107.4,3.21812]
[1732087761919,1.3045,3108.0,3107.5,3.21801]
[1732087762072,0.7545,3108.2,3107.6,3.21791]
[1732087762421,3.9718,3108.2,3107.6,3.21791]
[1732087762600,0.7545,3108.2,3107.4,3.21807]
[1732087762801,3.21751,3108.0,3107.4,3.620997]
[1732087763037,0.7545,3108.2,3107.7,3.21781]
[1732087763239,3.97181,3108.2,3107.6,3.21783]
[1732087764020,3.2175,3108.0,3107.4,3.21807]
[1732087764222,3.21762,3107.9,3107.4,3.21807]
[1732087764921,3.21751,3108.0,3107.4,3.21807]
[1732087765134,3.21751,3108.0,3107.5,3.21801]
[1732087765507,3.21751,3108.0,3107.4,3.21807]
[1732087765713,3.21778,3107.8,3107.3,4.02942]
[1732087766247,1.099151,3107.9,3107.3,0.8112]
[1732087766553,3.21782,3107.7,3107.3,0.8112]
[1732087768969,3.21772,3107.8,3107.3,4.02941]
[1732087771437,3.21772,3107.8,3107.3,0.8112]
[1732087772287,3.99501,3107.9,3107.3,4.02933]
[1732087772434,6.43491,3108.1,3107.4,0.402933]
[1732087772778,6.43491,3108.1,3107.3,4.02942]
[1732087772779,3.21742,3108.1,3107.5,3.21795]
[1732087772948,0.7774,3108.2,3107.5,3.21795]
[1732087772949,0.7774,3108.2,3107.7,3.2178]
[1732087773152,3.99469,3108.2,3107.7,4.0265]
[1732087773896,3.99469,3108.2,3107.7,0.8087]
[1732087774066,5.033869,3108.2,3107.7,0.8087]
[1732087774271,0.55,3108.1,3107.3,3.21822]
[1732087774655,3.21768,3107.9,3107.3,3.21822]
[1732087774984,0.55,3107.9,3107.4,4.0268]
[1732087775540,0.55,3108.0,3107.4,4.0268]
[1732087775767,3.2176,3107.9,3107.4,4.0268]
[1732087776138,3.2176,3107.9,3107.4,0.8087]
[1732087776357,3.2176,3107.9,3107.4,4.02679]
[1732087776556,3.2176,3107.9,3107.4,0.8087]
[1732087776742,3.916103,3107.9,3107.3,3.2182]
[1732087776943,0.7774,3107.8,3107.3,3.2182]
[1732087777783,3.99512,3107.8,3107.3,3.2182]
[1732087779594,3.99512,3107.8,3107.3,3.2132]
[1732087780093,3.76751,3108.0,3107.5,3.218]
[1732087780265,3.99481,3108.1,3107.6,3.21791]
[1732087780585,3.99481,3108.1,3107.6,4.02661]
[1732087780743,3.99481,3108.1,3107.6,0.8087]
[1732087781255,3.99481,3108.1,3107.6,4.0266]
[1732087781459,3.2173,3108.2,3107.6,4.02653]
[1732087781673,3.2173,3108.2,3107.6,4.429183]
[1732087782199,4.0087,3108.4,3107.7,3.21771]
[1732087782882,3.21719,3108.3,3107.7,3.21771]
[1732087786223,3.21733,3108.2,3107.6,4.02653]
[1732087786397,3.21742,3108.1,3107.6,4.02653]
[1732087787418,3.21742,3108.1,3107.6,0.8087]
[1732087789284,3.21761,3107.9,3107.6,0.8087]
[1732087793515,3.21761,3107.9,3107.2,3.21829]
[1732087793516,3.21802,3107.5,3107.0,3.21849]
[1732087793726,3.21802,3107.5,3107.1,0.8184]
[1732087794318,3.21821,3107.4,3107.1,0.8184]
[1732087794616,3.21832,3107.3,3106.8,3.21874]
[1732087794990,3.21834,3107.2,3106.7,0.8184]
[1732087795520,3.21836,3107.2,3106.7,4.03724]
[1732087796877,3.21836,3107.2,3106.7,0.8184]
[1732087798936,3.21857,3107.0,3106.7,0.8184]
[1732087799135,3.21857,3107.0,3106.5,0.8184]
[1732087800127,0.8287,3107.1,3106.5,4.03739]
[1732087800541,0.8101,3107.3,3106.5,0.88277449]
[1732087800694,3.21815,3107.4,3106.8,3.21868]
[1732087801235,3.21793,3107.6,3107.0,3.21853]
[1732087801537,3.21793,3107.6,3107.1,0.7994]
[1732087801937,0.8101,3107.7,3107.1,0.7994]
[1732087802237,0.55,3107.6,3107.1,0.7994]
[1732087802536,3.21781,3107.7,3107.1,4.01782]
[1732087802740,3.21775,3107.8,3107.2,3.21831]
[1732087802934,3.21775,3107.8,3107.2,3.21826]
[1732087805345,3.21812,3107.4,3107.1,0.7994]
[1732087805644,3.21812,3107.4,3106.9,0.7994]
[1732087805645,0.321812,3107.3,3106.9,0.7994]
[1732087805848,3.21826,3107.3,3106.9,0.7994]
[1732087806349,4.0282,3107.5,3106.9,0.7994]
[1732087806547,4.8868729,3107.5,3106.9,0.7994]
[1732087806756,3.21814,3107.4,3106.9,4.01801]
[1732087806918,3.21814,3107.4,3106.9,0.7994]
[1732087807419,4.8867929,3107.5,3107.0,3.21851]
[1732087807613,3.21788,3107.7,3107.0,3.21845]
[1732087807813,0.55,3107.7,3107.2,3.21832]
[1732087808013,3.21753,3108.0,3107.1,0.7994]
[1732087808014,3.21753,3108.0,3107.3,3.21821]
[1732087808219,4.0543499,3108.0,3107.3,3.21821]
[1732087808414,3.21773,3107.8,3107.3,3.21821]
[1732087809048,4.0543499,3108.0,3107.4,3.21804]
[1732087809249,4.0543499,3108.0,3107.5,0.7994]
[1732087809554,4.0543499,3108.0,3107.5,4.01741]
[1732087809555,0.8368199,3108.0,3107.5,4.01741]
[1732087809855,3.21731,3108.2,3107.7,3.21781]
[1732087810205,4.259762,3108.2,3107.7,3.21781]
[1732087811155,1.042452,3108.2,3107.7,3.21781]
[1732087811450,1.042452,3108.2,3107.8,3.21768]
[1732087811611,3.2172,3108.3,3107.6,3.21783]
[1732087812846,3.2172,3108.3,3107.5,4.01737]
[1732087813170,3.9901,3108.4,3107.7,3.21774]
[1732087813473,7.20724,3108.4,3107.9,0.7687]
[1732087815072,3.18,3108.4,3108.0,3.21745]
[1732087815844,3.18,3108.4,3108.1,3.21739]
[1732087816591,3.18,3108.4,3108.0,3.21745]
[1732087816994,3.18,3108.4,3107.9,0.7687]
[1732087817141,3.21725,3108.3,3107.9,0.7687]
[1732087817341,3.2173,3108.2,3107.9,0.7687]
[1732087817583,3.2173,3108.2,3107.6,3.98656]
[1732087817788,3.2173,3108.2,3107.6,0.7687]
[1732087818102,3.2173,3108.2,3107.6,3.98654]
[1732087818682,3.2173,3108.2,3107.6,0.7687]
[1732087818982,3.2173,3108.2,3107.6,3.9866]
[1732087819183,3.70789896,3108.2,3107.6,3.9866]
[1732087819419,3.70789896,3108.2,3107.7,3.2178]
[1732087819572,3.2173,3108.2,3107.7,3.2178]
[1732087820390,0.7535,3108.3,3107.7,6.43551]
[1732087820543,0.7535,3108.3,3107.7,3.21771]
[1732087820742,6.39713,3108.4,3107.9,3.2176]
[1732087821707,3.18,3108.4,3108.1,0.7513]
[1732087825774,3.18,3108.4,3107.8,3.21766]
[1732087825982,3.18,3108.4,3107.9,0.7977]
[1732087826360,6.39711,3108.4,3107.9,0.7977]
[1732087826577,6.39711,3108.4,3107.9,4.01527]
[1732087827304,3.21721,3108.3,3107.9,0.7977]
[1732087827512,0.8042,3108.1,3107.6,0.7977]
[1732087827704,0.8042,3108.1,3107.3,0.7977]
[1732087827856,3.21771,3107.8,3107.3,0.7977]
[1732087828261,3.21784,3107.7,3107.3,0.7977]
[1732087828807,3.21803,3107.5,3107.0,4.01619]
[1732087828954,3.21803,3107.5,3106.7,3.21876]
[1732087828955,2.14476896,3107.6,3106.7,4.01646]
[1732087829155,3.21834,3107.2,3106.7,4.01646]
[1732087829358,3.21834,3107.2,3106.7,0.7977]
[1732087830257,3.21833,3107.2,3106.7,0.7977]
[1732087831141,6.43675,3107.2,3106.7,0.7977]
[1732087831311,3.21848,3107.1,3106.7,0.7977]
[1732087834830,3.21833,3107.2,3106.7,0.7977]
[1732087835348,3.21824,3107.3,3106.7,4.01646]
[1732087835349,3.2183,3107.3,3106.7,4.01646]
[1732087835698,3.2183,3107.3,3106.7,4.08082969]
[1732087836414,3.76807,3107.5,3106.8,3.21873]
[1732087836613,3.76807,3107.5,3106.7,4.01646]
[1732087836614,3.21819,3107.4,3106.7,4.01646]
[1732087836816,4.225297,3107.5,3106.7,4.01646]
[1732087836999,4.225297,3107.5,3106.9,3.21863]
[1732087837307,4.225297,3107.5,3106.7,4.01646]
[1732087837308,3.675297,3107.5,3107.0,0.06436939]
[1732087837508,3.21815,3107.4,3107.0,0.7977]
[1732087837752,3.21825,3107.3,3107.0,0.7977]
[1732087838244,6.43618,3107.5,3107.0,0.7977]
[1732087838458,3.21819,3107.4,3107.0,0.7977]
[1732087838968,3.21823,3107.3,3106.8,0.7977]
[1732087839462,0.3620457,3107.3,3106.8,0.7977]
[1732087839646,3.21845,3107.1,3106.6,0.7977]
[1732087840430,0.8042,3107.6,3106.6,0.7977]
[1732087840431,3.21872,3106.9,3106.6,0.7977]
[1732087840631,0.321872,3106.8,3106.4,3.99039]
[1732087840870,3.21866,3106.9,3106.4,0.7713]
[1732087841656,3.21855,3107.0,3106.4,3.99044]
[1732087841861,3.21833,3107.2,3106.4,3.99044]
[1732087842091,3.21833,3107.2,3106.6,3.21892]
[1732087842282,3.21825,3107.3,3106.7,0.06437347]
[1732087842436,3.21825,3107.3,3106.6,3.21887]
[1732087842635,3.21839,3107.2,3106.6,3.21887]
[1732087843981,3.621875,3107.3,3106.7,3.21877]
[1732087844279,3.21826,3107.3,3106.9,0.7713]
[1732087844485,4.03645,3107.4,3106.9,0.7713]
[1732087844683,3.2184,3107.2,3106.9,0.7713]
[1732087846989,0.403645,3107.3,3106.9,0.7713]
[1732087847292,3.21862,3107.0,3106.5,0.7713]
[1732087847488,3.21877,3106.8,3106.5,0.7713]
[1732087848072,3.21877,3106.8,3106.2,0.7713]
[1732087848241,3.21895,3106.6,3106.2,0.7713]
[1732087848647,3.21877,3106.8,3106.2,3.99064]
[1732087848882,3.21887,3106.7,3106.2,3.99064]
[1732087849750,3.21897,3106.6,3105.9,0.7713]
[1732087850086,3.2192,3106.4,3105.9,0.7713]
[1732087850457,3.21926,3106.3,3105.9,0.7713]
[1732087850854,3.2192,3106.4,3105.9,0.7713]
[1732087851544,6.43844,3106.4,3105.9,0.7713]
[1732087852171,3.219,3106.6,3105.9,0.7713]
[1732087852355,3.219,3106.6,3105.9,3.99089]
[1732087852555,3.21905,3106.5,3105.9,3.99089]
[1732087853781,1.221999,3106.9,3105.9,3.99089]
[1732087854077,3.21916,3106.4,3105.9,3.99089]
[1732087857375,3.21916,3106.4,3105.9,0.7713]
[1732087857584,0.8183,3106.5,3105.9,3.99094]
[1732087858318,4.03741,3106.5,3105.9,3.99094]
[1732087858910,0.8183,3106.5,3106.0,3.21951]
[1732087859109,3.21891,3106.7,3106.1,3.2194]
[1732087859267,3.944509,3106.7,3106.1,3.2194]
[1732087859471,3.21895,3106.6,3106.1,3.2194]
[1732087860414,3.2188,3106.8,3105.9,0.7713]
[1732087860709,3.21887,3106.7,3106.1,3.21937]
[1732087860913,3.21898,3106.6,3106.0,0.7713]
[1732087861217,4.03736,3106.5,3106.0,0.7713]
[1732087861512,3.21921,3106.4,3106.0,0.7713]
[1732087861872,3.21943,3106.2,3105.7,0.7713]
[1732087863431,3.21963,3106.0,3105.7,0.7713]
[1732087864478,7.082714,3106.2,3105.7,0.7713]
[1732087864687,3.863264,3106.2,3105.7,0.7713]
[1732087864945,3.21921,3106.4,3105.7,3.99111]
[1732087865226,3.21934,3106.3,3105.7,3.99111]
[1732087865439,3.21921,3106.4,3105.7,3.99111]
[1732087865736,3.2194,3106.2,3105.7,3.99111]
[1732087866033,3.2194,3106.2,3105.7,0.7713]
[1732087867535,3.21942,3106.2,3105.7,0.7713]
[1732087868029,3.21942,3106.2,3105.7,3.99118]
[1732087868185,3.21916,3106.4,3105.7,0.7713]
[1732087868384,3.21937,3106.2,3105.7,3.99118]
[1732087868605,3.622906,3106.4,3105.8,3.21975]
[1732087869291,6.842156,3106.4,3105.8,3.21975]
[1732087869731,3.622906,3106.4,3105.8,3.21975]
[1732087870113,4.03694,3106.9,3106.2,3.21933]
[1732087870313,3.21876,3106.8,3106.1,0.7713]
[1732087870533,0.403694,3106.8,3106.2,3.21936]
[1732087870751,0.7708,3107.1,3106.5,3.21897]
[1732087871119,3.2186,3107.0,3106.4,4.02765]
[1732087871857,3.2186,3107.0,3106.4,0.8085]
[1732087872059,3.61754,3107.0,3106.4,0.8085]
[1732087872213,3.21885,3106.7,3106.4,0.8085]
[1732087872417,3.21885,3106.7,3106.1,4.02792]
[1732087873608,3.98965,3106.7,3106.1,4.02792]
[1732087873852,3.98965,3106.7,3106.2,3.21935]
[1732087875160,3.21866,3106.9,3106.2,3.21935]
[1732087875447,3.21866,3106.9,3106.4,3.21915]
[1732087875664,0.7708,3107.0,3106.5,0.8085]
[1732087875822,3.21849,3107.1,3106.6,3.21894]
[1732087876023,3.9025555,3107.1,3106.6,3.21894]
[1732087876832,3.9025555,3107.1,3106.5,0.8085]
[1732087877155,0.6840655,3107.1,3106.5,4.02755]
[1732087877316,3.9025255,3107.1,3106.5,4.02755]
[1732087877517,3.2186,3107.0,3106.5,0.8085]
[1732087877751,3.93071255,3107.0,3106.5,0.8085]
[1732087878414,3.21865,3106.9,3106.5,0.8085]
[1732087879459,0.71211255,3107.0,3106.5,0.8085]
[1732087879701,3.93067255,3107.0,3106.5,0.8085]
[1732087880438,0.71211255,3107.0,3106.5,0.8085]
[1732087880781,3.93067255,3107.0,3106.5,4.02754]
[1732087882157,0.71211255,3107.0,3106.7,3.21879]
[1732087882449,3.21834,3107.2,3106.7,3.21879]
[1732087882677,3.21834,3107.2,3106.5,4.02754]
[1732087882678,6.43677,3107.2,3106.5,4.02746]
[1732087882836,3.21834,3107.2,3106.5,7.24643]
[1732087883042,3.21834,3107.2,3106.6,3.2189]
[1732087884479,4.63113597,3107.2,3106.6,3.2189]
[1732087887655,4.63113597,3107.2,3106.8,3.2187]
[1732087887656,1.41279597,3107.2,3106.8,3.2187]
[1732087887867,5.33041493,3107.3,3106.5,4.0275]
[1732087888187,5.33041493,3107.3,3106.7,3.21876]
[1732087888797,5.33041493,3107.3,3106.8,3.21873]
[1732087888967,6.51515689,3107.3,3106.8,3.21873]
[1732087889580,9.73347689,3107.3,3106.6,6.43783]
[1732087889780,6.51515689,3107.3,3106.8,3.21873]
[1732087890134,0.7708,3107.3,3106.8,3.21873]
[1732087890338,6.51700471,3107.4,3107.1,3.21842]
[1732087890779,6.51700471,3107.4,3107.0,3.2185]
[1732087891296,6.51700471,3107.4,3107.1,3.21843]
[1732087891447,6.51700471,3107.4,3107.0,3.2185]
[1732087891448,3.18,3107.4,3107.2,3.21826]
[1732087891794,3.18,3107.4,3107.2,6.43651]
[1732087891975,3.18,3107.4,3107.2,3.21825]
[1732087893142,0.789,3107.7,3107.3,3.21813]
[1732087893339,0.789,3107.9,3107.5,3.21796]
[1732087893594,0.789,3107.9,3107.4,3.21803]
[1732087893595,2.13039493,3108.1,3107.6,3.21791]
[1732087893771,0.789,3108.1,3107.6,3.21791]
[1732087894159,0.789,3108.1,3107.7,3.2178]
[1732087894359,0.789,3108.1,3107.3,0.8097]
[1732087894360,0.789,3108.1,3107.5,3.21792]
[1732087894789,4.0064,3108.1,3107.6,3.21791]
[1732087895443,4.0064,3108.1,3107.3,4.02787]
[1732087895444,3.21754,3108.0,3107.4,3.21812]
[1732087895645,1.34139493,3107.7,3107.1,0.8097]
[1732087895947,4.55928493,3107.7,3107.1,0.8097]
[1732087896170,4.55928493,3107.7,3107.1,4.02813]
[1732087896346,4.55928493,3107.7,3107.1,0.8097]
[1732087896565,8.31202342,3107.7,3107.1,0.8097]
[1732087896748,3.21792,3107.6,3107.1,0.8097]
[1732087896946,5.09411342,3107.7,3107.1,4.02813]
[1732087897270,3.75271849,3107.7,3107.2,3.21831]
[1732087897474,3.21789,3107.7,3107.2,3.21831]
[1732087900054,9.39711,3108.4,3107.4,3.21802]
[1732087900055,3.21741,3108.1,3107.4,3.21802]
[1732087900255,0.789,3108.2,3107.6,0.8097]
[1732087900489,4.00638,3108.2,3107.6,4.02755]
[1732087901494,3.21756,3108.0,3107.6,0.8097]
[1732087905470,6.43516,3108.0,3107.4,4.0084]
[1732087905810,6.43514,3108.0,3107.4,4.0084]
[1732087905966,3.21756,3108.0,3107.4,4.0084]
[1732087907769,3.21762,3107.9,3107.4,4.0084]
[1732087908111,3.21762,3107.9,3107.4,0.7903]
[1732087908419,3.21762,3107.9,3107.2,0.7903]
[1732087908420,3.21791,3107.6,3107.2,0.7903]
[1732087908596,3.21791,3107.6,3107.1,3.2184]
[1732087909181,3.21784,3107.7,3107.1,3.2184]
[1732087910140,3.21784,3107.7,3107.2,3.21831]
[1732087910500,3.21784,3107.7,3107.1,3.2184]
[1732087910695,3.21792,3107.6,3107.1,3.2184]
[1732087911013,3.21784,3107.7,3107.1,3.2184]
[1732087911890,3.21784,3107.7,3107.2,3.21833]
[1732087913539,3.2183,3107.3,3106.8,0.7903]
[1732087913738,3.21843,3107.1,3106.8,0.7903]
[1732087915311,3.21843,3107.1,3106.6,4.00922]
[1732087915643,3.21858,3107.0,3106.6,0.7903]
[1732087915943,3.21843,3107.1,3106.6,0.7903]
[1732087916298,3.21863,3107.0,3106.6,0.7903]
[1732087917042,3.21827,3107.3,3106.6,0.7903]
[1732087917241,3.21827,3107.3,3106.7,3.21875]
[1732087917433,3.623187,3107.3,3106.7,6.43752]
[1732087917742,3.21835,3107.2,3106.7,3.21875]
[1732087917946,3.623187,3107.3,3106.7,3.21875]
[1732087918094,3.21833,3107.2,3106.7,3.21875]
[1732087918740,3.623187,3107.3,3106.7,3.21875]
[1732087918893,3.21833,3107.2,3106.7,3.21875]
[1732087919344,3.21835,3107.2,3106.7,3.21875]
[1732087919858,3.623187,3107.3,3106.6,0.7903]
[1732087919859,3.21845,3107.1,3106.6,0.7903]
[1732087921080,6.43766,3106.8,3106.4,0.7888]
[1732087921422,3.21883,3106.8,3106.4,0.7888]
[1732087921733,3.98362,3106.6,3106.1,0.7888]
[1732087922277,3.21913,3106.5,3106.1,0.7888]
[1732087923023,3.21916,3106.4,3106.1,0.7888]
[1732087923658,3.21938,3106.2,3105.8,0.7888]
[1732087923863,3.21948,3106.1,3105.8,0.7888]
[1732087924769,3.21938,3106.2,3105.8,0.7888]
[1732087926277,3.21917,3106.4,3105.8,0.7888]
[1732087926454,3.21931,3106.3,3105.8,0.7888]
[1732087927423,3.21931,3106.3,3105.8,4.00856]
[1732087927628,3.21931,3106.3,3105.8,4.00857]
[1732087928070,3.9836,3106.6,3105.8,4.00857]
[1732087928275,3.21914,3106.5,3105.8,4.00857]
[1732087928426,3.21914,3106.5,3105.9,3.21965]
[1732087930600,5.33575583,3106.8,3106.1,3.97487]
[1732087930740,3.21897,3106.6,3106.2,0.397487]
[1732087931083,6.43802,3106.6,3106.1,0.7555]
[1732087931241,6.43802,3106.6,3105.0,5.99691179]
[1732087931242,3.21927,3106.3,3105.8,3.97521]
[1732087931670,0.775,3106.8,3105.9,0.7555]
[1732087931671,3.21885,3106.7,3105.9,0.7555]
[1732087931997,0.775,3106.8,3106.3,3.21926]
[1732087932286,0.775,3106.8,3106.2,0.7555]
[1732087932287,3.21882,3106.8,3106.2,0.7555]
[1732087932520,5.09437241,3106.8,3106.2,0.7555]
[1732087932675,4.56080583,3106.8,3106.2,0.7555]
[1732087933096,3.21882,3106.8,3106.2,0.7555]
[1732087933416,3.21882,3106.8,3106.1,3.21938]
[1732087933417,3.21854,3107.0,3106.4,3.9746]
[1732087933640,3.21854,3107.0,3106.5,0.719377]
[1732087933837,3.21854,3107.0,3106.4,3.9746]
[1732087935079,1.34198583,3107.1,3106.8,3.2187]
[1732087935274,0.775,3107.3,3106.8,3.2187]
[1732087935275,3.99325,3107.3,3106.9,0.7555]
[1732087935592,5.28158958,3107.3,3106.9,0.7555]
[1732087936280,1.28833958,3107.3,3106.9,3.97408]
[1732087936505,3.18,3107.4,3106.9,3.97408]
[1732087936711,3.18,3107.4,3107.0,3.21853]
[1732087936977,3.18,3107.4,3106.9,0.7555]
[1732087937277,3.21823,3107.3,3106.9,0.7555]
[1732087937890,4.03150558,3107.4,3106.9,0.7555]
[1732087938429,7.24962558,3107.4,3106.9,0.7555]
[1732087938583,3.21824,3107.3,3106.9,0.7555]
[1732087938794,4.03150558,3107.4,3106.9,0.7555]
[1732087938993,5.37349141,3107.4,3106.9,0.7555]
[1732087939227,4.52198583,3107.4,3106.9,0.7555]
[1732087939413,7.74010583,3107.4,3106.9,0.7555]
[1732087939822,3.18,3107.4,3107.0,3.2185]
[1732087940622,4.55996583,3107.6,3107.0,3.2185]
[1732087941410,4.55992583,3107.6,3107.0,3.2185]
[1732087943428,4.55992583,3107.6,3106.9,0.7555]
[1732087943765,3.2182,3107.4,3106.9,0.7555]
[1732087944515,3.2182,3107.4,3106.9,3.9741]
[1732087944715,7.77790583,3107.6,3106.9,3.9741]
[1732087944957,4.55992583,3107.6,3106.9,3.9741]
[1732087945164,3.21809,3107.5,3106.9,3.9741]
[1732087945556,0.775,3107.8,3107.1,0.7555]
[1732087945755,0.775,3107.8,3106.5,4.72198583]
[1732087945756,4.55962583,3107.9,3107.3,3.21814]
[1732087945974,4.55962583,3107.9,3107.4,0.321814]
[1732087946285,4.55962583,3107.9,3107.3,3.21814]
[1732087946970,1.34198583,3107.9,3107.5,3.21793]
[1732087947180,1.34198583,3108.1,3107.6,3.21783]
[1732087947353,6.39712,3108.4,3107.8,0.7778]
[1732087947538,7.73910583,3108.4,3107.8,0.7778]
[1732087948071,10.95628583,3108.4,3107.8,0.7778]
[1732087948279,10.95628583,3108.4,3107.8,3.99549]
[1732087948280,7.73910583,3108.4,3107.8,3.99549]
[1732087948634,6.39712,3108.4,3107.8,3.99549]
[1732087949385,3.18,3108.4,3107.8,0.7778]
[1732087949682,3.18,3108.4,3108.0,3.21749]
[1732087949861,3.18,3108.4,3107.8,3.9955]
[1732087950038,3.18,3108.4,3107.9,3.2176]
[1732087950229,3.18,3108.4,3107.9,3.21757]
[1732087950840,3.18,3108.4,3107.8,3.99543]
[1732087950841,3.21727,3108.3,3107.8,0.7778]
[1732087952251,3.21727,3108.3,3107.8,3.99549]
[1732087954666,3.18,3108.4,3107.8,4.716826]
[1732087954976,3.33700471,3108.5,3108.1,0.7778]
[1732087955940,3.21676,3108.8,3108.2,3.21729]
[1732087956586,3.99681,3108.9,3108.2,3.21729]